{"text_format":"3","workbook":"xlsx","n_sheets":4,"sheets":["Tablou de bord","Active","Pasive","calcule"],"not_rendered":{"charts":4,"defined_names":4},"read":"whole","date_system":"1900"}

{"sheet":"Tablou de bord","index":0,"n_rows":16,"n_cols":8,"rows_kept":16}
[]
[null,"TABLOU DE BORD",{"$nulls":4},"REZUMAT VALOARE NETĂ"," "]
{"$rows_empty":8}
[null,{"$f":"ValNetă","v":{"v":159600,"d":"159,600 lei"}},null,{"$f":"TotalActive","v":{"v":380800,"d":"380,800 lei"}},null,null,{"$f":"TotalPasive","v":{"v":221200,"d":"221,200 lei"}}]
[null,"AVERE NETĂ",null,"TOTAL ACTIVE",null,null,"TOTAL PASIVE"]
[{"$nulls":3},"NUMERAR",null,null,"NESIGUR"]
[{"$nulls":3},"INVESTIȚII",null,null,"SIGUR"]
[{"$nulls":3},"PENSIE"]
[{"$nulls":3},"PERSONAL"]

{"sheet":"Active","index":1,"n_rows":24,"n_cols":10,"rows_kept":24,"merged":[[11,1,12,1],[13,1,14,1],[14,2,14,4],[14,6,14,8],[25,2,25,4],[25,6,25,8]]}
[]
[null,"ACTIVE",{"$nulls":5},"REZUMAT VALOARE NETĂ",null," "]
[]
[null,null," ","NUMERAR","VALOARE",null," ","PERSONAL","VALOARE"]
[{"$nulls":3},"NUMERAR ÎN CASĂ",{"v":2000,"d":"2,000"},null,null,"REȘEDINȚĂ PRINCIPALĂ",{"v":233000,"d":"233,000"}]
[{"$nulls":3},"CONTURI CURENTE",{"v":2500,"d":"2,500"},null,null,"REȘEDINȚĂ SECUNDARĂ"]
[{"$nulls":3},"CONTURI DE ECONOMII",{"v":4000,"d":"4,000"},null,null,"OBIECTE DE COLECȚIE"]
[{"$nulls":3},"CONTURI DE PIAȚĂ MONETARĂ",{"v":3300,"d":"3,300"},null,null,"AUTOMOBILE",{"v":32000,"d":"32,000"}]
[{"$nulls":3},"CONTURI PENTRU FONDURI DE PIAȚĂ MONETARĂ",{"v":7000,"d":"7,000"},null,null,"AMENAJĂRI INTERIOARE",{"v":10000,"d":"10,000"}]
[{"$nulls":3},"CERTIFICATE DE DEPOZIT",{"$nulls":3},"BLĂNURI ȘI BIJUTERII"]
[{"$nulls":3},"BONURI DE TREZORERIE",{"$nulls":3},"ALTE BUNURI",{"v":1500,"d":"1,500"}]
[null,{"$f":"TotalActive","v":{"v":380800,"d":"380,800 lei"}},null,"VALOARE ÎN NUMERAR A ASIGURĂRII DE VIAȚĂ",{"v":24500,"d":"24,500"}]
[{"$nulls":3},"SUBTOTAL",{"$f":"SUBTOTAL(109,tblNumerar[VALOARE])","v":{"v":43300,"d":"43,300"}},null,null,"SUBTOTAL",{"$f":"SUBTOTAL(109,tblPersonal[VALOARE])","v":{"v":276500,"d":"276,500"}}]
[null,"TOTAL ACTIVE"]
[]
[]
[null,null," ","INVESTIȚII","VALOARE",null," ","PENSIE","VALOARE"]
[{"$nulls":3},"ACȚIUNI",{"v":15000,"d":"15,000"},null,null,"PENSIE"]
[{"$nulls":3},"BONDURI",{"$nulls":3},"CONTURI PENSIE PRIVATĂ"]
[{"$nulls":3},"INVESTIȚII ÎN FONDURI MUTUALE",{"$nulls":3},"ALTE CONTURI"]
[{"$nulls":3},"DOBÂNZI PARTENERIAT",{"$nulls":3},"401K",{"v":46000,"d":"46,000"}]
[{"$nulls":3},"ALTE INVESTIȚII",{"$nulls":3},"SEP"]
[{"$nulls":7},"ESOP"]
[{"$nulls":3},"SUBTOTAL",{"$f":"SUBTOTAL(109,tblInvestiții[VALOARE])","v":{"v":15000,"d":"15,000"}},null,null,"SUBTOTAL",{"$f":"SUBTOTAL(109,tblPensie[VALOARE])","v":{"v":46000,"d":"46,000"}}]

{"sheet":"Pasive","index":2,"n_rows":14,"n_cols":10,"rows_kept":14,"merged":[[11,1,12,1],[13,1,14,1]]}
[]
[null,"PASIVE",{"$nulls":5},"REZUMAT VALOARE NETĂ",null," "]
[]
[null,null," ","NESIGUR","DATORIE",null," ","SIGUR","DATORIE"]
[{"$nulls":3},"CĂRȚI DE CREDIT",{"v":1200,"d":"1,200"},null,null,"Împrumuturi auto",{"v":14500,"d":"14,500"}]
[{"$nulls":3},"CONTURI DE CREDITARE",{"v":3000,"d":"3,000"},null,null,"Împrumuturi autovehicule"]
[{"$nulls":3},"ÎMPRUMUTURI PENTRU STUDIU",{"v":17500,"d":"17,500"},null,null,"Împrumuturi aparatură electrică"]
[{"$nulls":3},"PENSIE ALIMENTARĂ",{"$nulls":3},"Împrumuturi ipotecare",{"v":144000,"d":"144,000"}]
[{"$nulls":3},"ÎNTREȚINERE COPII",{"$nulls":3},"Împrumuturi ipotecare secundare",{"v":21000,"d":"21,000"}]
[{"$nulls":3},"OBLIGAȚII FISCALE",{"v":8000,"d":"8,000"},null,null,"Alte împrumuturi"]
[{"$nulls":3},"ALTELE",{"v":6000,"d":"6,000"},null,null,"Obligații fiscale",{"v":4000,"d":"4,000"}]
[null,{"$f":"TotalPasive","v":{"v":221200,"d":"221,200 lei"}},{"$nulls":5},"Altele",{"v":2000,"d":"2,000"}]
[{"$nulls":3},"SUBTOTAL",{"$f":"SUBTOTAL(109,tblNesecurizat[DATORIE])","v":{"v":35700,"d":"35,700"}},null,null,"SUBTOTAL",{"$f":"SUBTOTAL(109,tblSecurizat[DATORIE])","v":{"v":185500,"d":"185,500"}}]
[null,"TOTAL PASIVE"]

{"sheet":"calcule","index":3,"n_rows":23,"n_cols":3,"rows_kept":23,"hidden":true}
[]
[null,"*** Această foaie ar trebui să rămână ascunsă ***"]
{"$rows_empty":8}
[null,{"$f":"tblNumerar[[#Headers],[NUMERAR]]","v":"NUMERAR"},{"$f":"SUM(tblNumerar[VALOARE])","v":{"v":43300,"d":"43,300 lei"}}]
[null,{"$f":"tblInvestiții[[#Headers],[INVESTIȚII]]","v":"INVESTIȚII"},{"$f":"SUM(tblInvestiții[VALOARE])","v":{"v":15000,"d":"15,000 lei"}}]
[null,{"$f":"tblPensie[[#Headers],[PENSIE]]","v":"PENSIE"},{"$f":"SUM(tblPensie[VALOARE])","v":{"v":46000,"d":"46,000 lei"}}]
[null,{"$f":"tblPersonal[[#Headers],[PERSONAL]]","v":"PERSONAL"},{"$f":"SUM(tblPersonal[VALOARE])","v":{"v":276500,"d":"276,500 lei"}}]
[null,"Total active",{"$f":"SUM(tblNumerar[VALOARE],tblInvestiții[VALOARE],tblPensie[VALOARE],tblPersonal[VALOARE])","v":{"v":380800,"d":"380,800 lei"}}]
[]
[]
[null,{"$f":"tblNesecurizat[[#Headers],[NESIGUR]]","v":"NESIGUR"},{"$f":"SUM(tblNesecurizat[DATORIE])","v":{"v":35700,"d":"35,700 lei"}}]
[null,{"$f":"tblSecurizat[[#Headers],[SIGUR]]","v":"SIGUR"},{"$f":"SUM(tblSecurizat[DATORIE])","v":{"v":185500,"d":"185,500 lei"}}]
[null,"Total pasive",{"$f":"SUM(tblNesecurizat[DATORIE],tblSecurizat[DATORIE])","v":{"v":221200,"d":"221,200 lei"}}]
[]
[]
[null,"Valoare netă",{"$f":"C15-C20","v":{"v":159600,"d":"159,600 lei"}}]